fUSD/lending_fUSD_20251213
["ID","MTS","AMOUNT","RATE_DAILY","PERIOD"]
[398420518,1765635039405,-489.9298867,0.00016218,2]
[398420519,1765635039414,-582.0,0.00016234,2]
[398420520,1765635039423,-500.0,0.00016237,2]
[398420521,1765635039432,-500.0,0.00016237,2]
[398420522,1765635039441,-500.0,0.00016237,2]
[398420523,1765635039450,-500.0,0.00016237,2]
[398420524,1765635039458,-500.0,0.00016237,2]
[398420525,1765635039467,-500.0,0.00016237,2]
[398420526,1765635039479,-500.0,0.00016237,2]
[398420527,1765635039488,-500.0,0.00016237,2]
[398420528,1765635039498,-500.0,0.00016237,2]
[398420529,1765635039507,-348.0,0.00016241,2]
[398420530,1765635039516,-9938.32945493,0.00016245,2]
[398420531,1765635039527,-7901.25999694,0.00016245,2]
[398420532,1765635039537,-376.0,0.00016246,2]
[398420533,1765635039546,-799.0,0.00016248,2]
[398420534,1765635039556,-292.0,0.00016267,2]
[398420535,1765635039566,-1500.0,0.00016274,2]
[398420536,1765635039575,-193.0,0.00016278,2]
[398420537,1765635039584,-799.0,0.00016303,2]
[398420538,1765635039593,-1175.0,0.00016306,2]
[398420539,1765635039602,-723.34,0.00016341,2]
[398420540,1765635039612,-799.0,0.00016358,2]
[398420541,1765635039621,-168.0,0.00016361,2]
[398420542,1765635039631,-274.0,0.00016364,2]
[398420543,1765635039641,-196.0,0.00016367,2]
[398420544,1765635039651,-725.63,0.00016402,2]
[398420545,1765635039660,-799.0,0.00016413,2]
[398420546,1765635039669,-168.0,0.00016431,2]
[398420547,1765635039679,-500.0,0.00016437,2]
[398420548,1765635039688,-1699.17870275,0.00016438,2]
[398420549,1765635039698,-1699.17870275,0.00016438,2]
[398420550,1765635039709,-1699.17870275,0.00016438,2]
[398420551,1765635039719,-1699.17870275,0.00016438,2]
[398420552,1765635039728,-1699.17870275,0.00016438,2]
[398420553,1765635039738,-1699.17870275,0.00016438,2]
[398420554,1765635039749,-1699.17870275,0.00016438,2]
[398420555,1765635039758,-1699.17870275,0.00016438,2]
[398420556,1765635039768,-1699.17870275,0.00016438,2]
[398420557,1765635039778,-1699.17870275,0.00016438,2]
[398420558,1765635039788,-1699.17870275,0.00016438,2]
[398420559,1765635039797,-1699.17870275,0.00016438,2]
[398420560,1765635039806,-1699.17870275,0.00016438,2]
[398420561,1765635039815,-1699.17870275,0.00016438,2]
[398420562,1765635039825,-1699.17870275,0.00016438,2]
[398420563,1765635039834,-1699.17870275,0.00016438,2]
[398420564,1765635039845,-1699.17870275,0.00016438,2]
[398420565,1765635039855,-1699.17870275,0.00016438,2]
[398420566,1765635039864,-1699.17870275,0.00016438,2]
[398420567,1765635039873,-1699.17870275,0.00016438,2]
[398420568,1765635039884,-1699.17870275,0.00016438,2]
[398420569,1765635039893,-1699.17870275,0.00016438,2]
[398420570,1765635039902,-1699.17870275,0.00016438,2]
[398420571,1765635039911,-1699.17870275,0.00016438,2]
[398420572,1765635039924,-1699.17870275,0.00016438,2]
[398420573,1765635039933,-1699.17870275,0.00016438,2]
[398420574,1765635039943,-1699.17870275,0.00016438,2]
[398420575,1765635039952,-1699.17870275,0.00016438,2]
[398420576,1765635039961,-1699.17870275,0.00016438,2]
[398420577,1765635039970,-1699.17870275,0.00016438,2]
[398420578,1765635039980,-1699.17870275,0.00016438,2]
[398420579,1765635039989,-1699.17870275,0.00016438,2]
[398420580,1765635039999,-1699.17870275,0.00016438,2]
[398420581,1765635040008,-1699.17870275,0.00016438,2]
[398420582,1765635040017,-1699.17870275,0.00016438,2]
[398420583,1765635040027,-1699.17870275,0.00016438,2]
[398420584,1765635040036,-1699.17870275,0.00016438,2]
[398420585,1765635040046,-1699.17870275,0.00016438,2]
[398420586,1765635040055,-1699.17870275,0.00016438,2]
[398420587,1765635040064,-1699.17870275,0.00016438,2]
[398420588,1765635040074,-1699.17870275,0.00016438,2]
[398420589,1765635040084,-1699.17870275,0.00016438,2]
[398420590,1765635040094,-1699.17870275,0.00016438,2]
[398420591,1765635040103,-1699.17870275,0.00016438,2]
[398420592,1765635040113,-1699.17870275,0.00016438,2]
[398420593,1765635040123,-1699.17870275,0.00016438,2]
[398420594,1765635040132,-1699.17870275,0.00016438,2]
[398420595,1765635040142,-1699.17870275,0.00016438,2]
[398420596,1765635040151,-1699.17870275,0.00016438,2]
[398420597,1765635040160,-1699.17870275,0.00016438,2]
[398420598,1765635040169,-1699.17870275,0.00016438,2]
[398420599,1765635040179,-1699.17870275,0.00016438,2]
[398420600,1765635040187,-1699.17870275,0.00016438,2]
[398420601,1765635040197,-1699.17870275,0.00016438,2]
[398420602,1765635040206,-1699.17870275,0.00016438,2]
[398420603,1765635040215,-1699.17870275,0.00016438,2]
[398420604,1765635040226,-1699.17870275,0.00016438,2]
[398420605,1765635040235,-1699.17870275,0.00016438,2]
[398420606,1765635040244,-1699.17870275,0.00016438,2]
[398420607,1765635040254,-1699.17870275,0.00016438,2]
[398420608,1765635040264,-1699.17870275,0.00016438,2]
[398420609,1765635040274,-1699.17870275,0.00016438,2]
[398420610,1765635040283,-1699.17870275,0.00016438,2]
[398420611,1765635040293,-1699.17870275,0.00016438,2]
[398420612,1765635040302,-1699.17870275,0.00016438,2]
[398420613,1765635040311,-1699.17870275,0.00016438,2]
[398420614,1765635040321,-1662.2400353,0.00016438,2]
[398420615,1765635040331,-1662.2400353,0.00016438,2]
[398420616,1765635040341,-1662.2400353,0.00016438,2]
[398420617,1765635040351,-1662.2400353,0.00016438,2]
[398420618,1765635040360,-1662.2400353,0.00016438,2]
[398420619,1765635040370,-1662.2400353,0.00016438,2]
[398420620,1765635040380,-1662.2400353,0.00016438,2]
[398420621,1765635040390,-1662.2400353,0.00016438,2]
[398420622,1765635040399,-1662.2400353,0.00016438,2]
[398420623,1765635040409,-1662.2400353,0.00016438,2]
[398420624,1765635040418,-1662.2400353,0.00016438,2]
[398420625,1765635040428,-1662.2400353,0.00016438,2]
[398420626,1765635040437,-1662.2400353,0.00016438,2]
[398420627,1765635040446,-1662.2400353,0.00016438,2]
[398420628,1765635040455,-1662.2400353,0.00016438,2]
[398420629,1765635040465,-1662.2400353,0.00016438,2]
[398420630,1765635040474,-1662.2400353,0.00016438,2]
[398420631,1765635040485,-1662.2400353,0.00016438,2]
[398420632,1765635040495,-1662.2400353,0.00016438,2]
[398420633,1765635040505,-1662.2400353,0.00016438,2]
[398420634,1765635040516,-1662.2400353,0.00016438,2]
[398420635,1765635040525,-1662.2400353,0.00016438,2]
[398420636,1765635040535,-1662.2400353,0.00016438,2]
[398420637,1765635040544,-500.0,0.00016438,2]
[398420638,1765635040554,-300.0,0.00016438,2]
[398420639,1765635040564,-9938.32945493,0.00016452,2]
[398420640,1765635040574,-7901.25999694,0.00016452,2]
[398420641,1765635040583,-799.0,0.00016468,2]
[398420642,1765635040593,-489.9298867,0.00016499,2]
[398420643,1765635040602,-799.0,0.00016523,2]
[398420644,1765635040613,-799.0,0.00016578,2]
[398420645,1765635040623,-500.0,0.0001663,2]
[398420646,1765635040633,-9938.32945493,0.00016659,2]
[398420647,1765635040643,-7901.25999694,0.00016659,2]
[398420648,1765635040653,-2527.41735292,0.0001666,2]
[398420649,1765635040663,-725.63,0.00016676,2]
[398420650,1765635040672,-200.0,0.00016676,2]
[398420651,1765635040681,-595.37131296,0.00016676,2]
[398420652,1765635040691,-200.0,0.00016676,2]
[398420653,1765635040701,-150.0,0.00016718,2]
[398420654,1765635040710,-150.0,0.00016718,2]
[398420655,1765635040719,-150.0,0.00016718,2]
[398420656,1765635040729,-150.0,0.00016718,2]
[398420657,1765635040738,-150.0,0.00016718,2]
[398420658,1765635040747,-150.0,0.00016718,2]
[398420659,1765635040756,-227.8103482,0.00016718,2]
[398420660,1765635040765,-150.60890833,0.00016718,2]
[398420661,1765635040775,-152.57211274,0.00016718,2]
[398420662,1765635040784,-150.0,0.00016718,2]
[398420663,1765635040793,-500.0,0.00016718,2]
[398420664,1765635040803,-500.0,0.00016718,2]
[398420665,1765635040811,-840.0,0.00016718,2]
[398420666,1765635040821,-500.0,0.00016718,2]
[398420667,1765635040830,-500.0,0.00016718,2]
[398420668,1765635040839,-150.0,0.00016718,2]
[398420669,1765635040850,-150.0,0.00016718,2]
[398420670,1765635040862,-150.0,0.00016718,2]
[398420671,1765635040872,-150.0,0.00016718,2]
[398420672,1765635040881,-150.0,0.00016718,2]
[398420673,1765635040891,-150.0,0.00016718,2]
[398420674,1765635040902,-153.60065798,0.00016718,2]
[398420675,1765635040912,-500.0,0.00016718,2]
[398420676,1765635040922,-150.0,0.00016718,2]
[398420677,1765635040934,-150.0,0.00016718,2]
[398420678,1765635040943,-150.0,0.00016718,2]
[398420679,1765635040953,-150.0,0.00016718,2]
[398420680,1765635040962,-151.0906704,0.00016718,2]
[398420681,1765635040971,-500.0,0.00016718,2]
[398420682,1765635040981,-231.46245508,0.00016736,2]
[398420683,1765635040990,-500.0,0.0001674,2]
[398420684,1765635041000,-489.9298867,0.00016779,2]
[398420685,1765635041009,-183.67518317,0.0001682,2]
[398420686,1765635041018,-4527.0,0.0001683,2]
[398420687,1765635041029,-125909.76869333,0.0001683,2]
[398420688,1765635041039,-150.0,0.00016855,2]
[398420689,1765635041048,-150.0,0.00016855,2]
[398420690,1765635041058,-500.0,0.00016855,2]
[398420691,1765635041067,-500.0,0.00016855,2]
[398420692,1765635041078,-840.0,0.00016855,2]
[398420693,1765635041088,-500.0,0.00016855,2]
[398420694,1765635041097,-500.0,0.00016855,2]
[398420695,1765635041107,-150.0,0.00016855,2]
[398420696,1765635041116,-298.65381266,0.00016855,2]
[398420697,1765635041126,-150.0,0.00016855,2]
[398420698,1765635041135,-150.0,0.00016855,2]
[398420699,1765635041144,-500.0,0.00016855,2]
[398420700,1765635041153,-150.0,0.00016855,2]
[398420701,1765635041163,-150.0,0.00016855,2]
[398420702,1765635041172,-500.0,0.00016855,2]
[398420703,1765635041181,-200.0,0.00016864,2]
[398420704,1765635041190,-307.76658629,0.00016865,2]
[398420705,1765635041199,-9938.32945493,0.00016866,2]
[398420706,1765635041209,-7901.25999694,0.00016866,2]
[398420707,1765635041218,-231.46245508,0.0001693,2]
[398420708,1765635041227,-725.63,0.0001695,2]
[398420709,1765635041236,-166.96872211,0.00016973,2]
[398420710,1765635041246,-362.943865,0.00016973,2]
[398420711,1765635041255,-500.0,0.00016973,2]
[398420712,1765635041265,-500.0,0.00016973,2]
[398420713,1765635041274,-500.0,0.00016973,2]
[398420714,1765635041283,-500.0,0.00016973,2]
[398420715,1765635041292,-500.0,0.00016973,2]
[398420716,1765635041302,-500.52668444,0.00016973,2]
[398420717,1765635041311,-223.83121583,0.00016973,2]
[398420718,1765635041320,-165.05782679,0.00016973,2]
[398420719,1765635041330,-501.34740605,0.00016973,2]
[398420720,1765635041339,-500.0,0.00016973,2]
[398420721,1765635041348,-500.0,0.00016973,2]
[398420722,1765635041358,-168.44035917,0.00016973,2]
[398420723,1765635041367,-500.26433138,0.00016973,2]
[398420724,1765635041377,-500.0,0.00016973,2]
[398420725,1765635041386,-482.77559391,0.00016973,2]
[398420726,1765635041395,-500.0,0.00016973,2]
[398420727,1765635041405,-500.40431242,0.00016973,2]
[398420728,1765635041414,-500.0,0.00016973,2]
[398420729,1765635041423,-500.0,0.00016973,2]
[398420730,1765635041432,-500.0,0.00016973,2]
[398420731,1765635041441,-500.0,0.00016973,2]
[398420732,1765635041450,-276.1948738,0.00016973,2]
[398420733,1765635041460,-500.0,0.00016973,2]
[398420734,1765635041470,-161.89218432,0.00016973,2]
[398420735,1765635041479,-500.0,0.00016973,2]
[398420736,1765635041488,-376.6677597,0.00016973,2]
[398420737,1765635041497,-500.0,0.00016973,2]
[398420738,1765635041506,-500.60353783,0.00016973,2]
[398420739,1765635041515,-500.69569811,0.00016973,2]
[398420740,1765635041524,-500.0,0.00016973,2]
[398420741,1765635041534,-500.0,0.00016973,2]
[398420742,1765635041543,-606.76,0.00016986,2]
[398420743,1765635041553,-12683.28,0.00016986,2]
[398420744,1765635041562,-166.67,0.00016988,2]
[398420745,1765635041572,-218.23294611,0.00016992,2]
[398420746,1765635041581,-150.0,0.00016992,2]
[398420747,1765635041590,-500.0,0.00016992,2]
[398420748,1765635041600,-500.0,0.00016992,2]
[398420749,1765635041609,-840.0,0.00016992,2]
[398420751,1765635041618,-500.0,0.00016992,2]
[398420752,1765635041627,-500.0,0.00016992,2]
[398420754,1765635041637,-150.0,0.00016992,2]
[398420755,1765635041646,-150.0,0.00016992,2]
[398420756,1765635041655,-500.0,0.00016992,2]
[398420757,1765635041664,-150.0,0.00016992,2]
[398420758,1765635041673,-200.0,0.00016992,2]
[398420759,1765635041682,-500.0,0.00016992,2]
[398420760,1765635041691,-240.9836211,0.00016997,2]
[398420761,1765635041699,-6167.3079033,0.00016998,2]
[398420762,1765635041709,-45573.778478,0.00016998,2]
[398420763,1765635041718,-641.1096514,0.00016999,2]
[398420764,1765635041727,-500.0,0.00016999,2]
[398420765,1765635041737,-500.0,0.00016999,2]
[398420766,1765635041747,-421596.68637528,0.00017,2]
[398420767,1765635041756,-5065.50956673,0.00017,2]
[398420768,1765635041766,-14280.2745891,0.00017,2]
[398420769,1765635041776,-200.0,0.00017,2]
[398420770,1765635041785,-150.0,0.00017,2]
[398420771,1765635041794,-3739.96578814,0.00017,2]
[398420772,1765635041803,-150.0,0.00017,2]
[398420773,1765635041812,-2875.08394241,0.00017,2]
[398420774,1765635041821,-150.0,0.00017,2]
[398420775,1765635041831,-8646.4204085,0.00017,2]
[398420776,1765635041840,-150.0,0.00017,2]
[398420777,1765635041853,-2578.29282872,0.00017,2]
[398420778,1765635041863,-2000.0,0.00017,2]
[398420779,1765635041872,-1000.0,0.00017,2]
[398420780,1765635041882,-200.0,0.00017,2]
[398420781,1765635041893,-250.0,0.00017,2]
[398420782,1765635041902,-200.0,0.00017,2]
[398420783,1765635041911,-3077.59189,0.00017,2]
[398420784,1765635041921,-642.0,0.00017014,2]
[398420785,1765635041932,-1261.0,0.00017014,2]
[398420786,1765635041942,-2426.0,0.00017014,2]
[398420787,1765635041951,-237.064,0.00017014,2]
[398420788,1765635041960,-6520.0,0.00017014,2]
[398420789,1765635041969,-489.9298867,0.00017059,2]
[398420790,1765635041979,-298.0,0.00017063,2]
[398420791,1765635041989,-9938.32945493,0.00017072,2]
[398420792,1765635041998,-7901.25999694,0.00017072,2]
[398420793,1765635042007,-168.0,0.00017083,2]
[398420794,1765635042016,-470.0,0.00017098,2]
[398420795,1765635042027,-481.04173315,0.00017104,2]
[398420796,1765635042036,-168.0,0.00017114,2]
[398420797,1765635042045,-231.46245508,0.00017124,2]
[398420798,1765635042054,-164.51278261,0.00017129,2]
[398420799,1765635042064,-500.0,0.00017129,2]
[398420800,1765635042073,-840.0,0.00017129,2]
[398420801,1765635042082,-500.0,0.00017129,2]
[398420802,1765635042091,-395.39785189,0.00017129,2]
[398420803,1765635042100,-500.0,0.00017129,2]
[398420804,1765635042110,-150.0,0.00017129,2]
[398420805,1765635042119,-150.0,0.00017129,2]
[398420806,1765635042129,-500.0,0.00017129,2]
[398420807,1765635042138,-271.27996839,0.00017129,2]
[398420808,1765635042147,-418.40164647,0.00017129,2]
[398420809,1765635042156,-840.0,0.00017159,2]
[398420810,1765635042166,-200.0,0.0001717,2]
[398420811,1765635042175,-200.0,0.0001717,2]
[398420812,1765635042184,-200.0,0.0001717,2]
[398420813,1765635042193,-725.63,0.00017224,2]
[398420814,1765635042203,-417.99807007,0.00017224,2]
[398420815,1765635042212,-168.0,0.00017226,2]
[398420816,1765635042221,-150.881,0.00017239,2]
[398420817,1765635042231,-1324.0,0.00017239,2]
[398420818,1765635042240,-1451.105,0.00017239,2]
[398420819,1765635042249,-3077.5919,0.0001724,2]
[398420820,1765635042258,-500.0,0.00017254,2]
[398420821,1765635042267,-609.0,0.00017256,2]
[398420822,1765635042277,-168.0,0.00017256,2]
[398420823,1765635042286,-168.0,0.00017258,2]
[398420824,1765635042296,-606.76,0.0001726,2]
[398420825,1765635042305,-150.0,0.0001726,2]
[398420826,1765635042314,-500.0,0.00017266,2]
[398420827,1765635042323,-840.0,0.00017266,2]
[398420828,1765635042333,-500.0,0.00017266,2]
[398420829,1765635042341,-500.0,0.00017266,2]
[398420830,1765635042597,-150.0,0.00017266,2]
[398420831,1765635042606,-229.0889974,0.00017266,2]
[398420832,1765635042615,-500.0,0.00017266,2]
[398420833,1765635042624,-168.0,0.00017266,2]
[398420834,1765635042634,-9938.32945493,0.00017279,2]
[398420835,1765635042643,-7901.25999694,0.00017279,2]
[398420836,1765635042653,-168.0,0.00017294,2]
[398420837,1765635042662,-231.46245508,0.00017318,2]
[398420838,1765635042671,-300.0,0.00017326,2]
[398420839,1765635042681,-300.0,0.00017326,2]
[398420840,1765635042690,-300.0,0.00017326,2]
[398420841,1765635042699,-250.0,0.00017326,2]
[398420842,1765635042708,-195.0,0.00017326,2]
[398420843,1765635042718,-300.0,0.00017326,2]
[398420844,1765635042727,-195.0,0.00017326,2]
[398420845,1765635042736,-300.0,0.00017326,2]
[398420846,1765635042745,-300.0,0.00017326,2]
[398420847,1765635042754,-193.0,0.00017326,2]
[398420848,1765635042763,-300.0,0.00017326,2]
[398420849,1765635042773,-300.0,0.00017326,2]
[398420850,1765635042783,-250.0,0.00017326,2]
[398420851,1765635042791,-195.0,0.00017326,2]
[398420852,1765635042800,-489.9298867,0.00017339,2]
[398420853,1765635042809,-200.0,0.00017342,2]
[398420854,1765635042819,-200.0,0.00017342,2]
[398420855,1765635042829,-168.0,0.00017363,2]
[398420856,1765635042839,-311.1,0.00017397,2]
[398420857,1765635042849,-500.0,0.00017403,2]
[398420858,1765635042860,-840.0,0.00017403,2]
[398420859,1765635042869,-500.0,0.00017403,2]
[398420860,1765635042878,-500.0,0.00017403,2]
[398420861,1765635042887,-250.0,0.00017403,2]
[398420862,1765635042898,-500.0,0.00017403,2]
[398420863,1765635042908,-1000.0,0.00017431,2]
[398420864,1765635042918,-9938.32945493,0.00017486,2]
[398420865,1765635042930,-7901.25999694,0.00017486,2]
[398420866,1765635042939,-151.0,0.00017497,2]
[398420867,1765635042949,-725.63,0.00017498,2]
[398420868,1765635042958,-168.0,0.00017507,2]
[398420869,1765635042968,-231.46245508,0.00017512,2]
[398420870,1765635042977,-200.0,0.00017515,2]
[398420872,1765635042987,-1000.0,0.00017521,2]
[398420874,1765635042996,-1000.0,0.00017521,2]
[398420876,1765635043005,-1000.0,0.00017521,2]
[398420878,1765635043015,-420.0,0.00017521,2]
[398420879,1765635043024,-420.0,0.00017521,2]
[398420880,1765635043033,-1680.0,0.00017522,2]
[398420881,1765635043043,-606.76,0.00017534,2]
[398420882,1765635043052,-500.0,0.0001754,2]
[398420883,1765635043061,-840.0,0.0001754,2]
[398420884,1765635043071,-500.0,0.0001754,2]
[398420885,1765635043080,-316.01974198,0.0001754,2]
[398420886,1765635043090,-500.0,0.0001754,2]
[398420887,1765635043100,-160.86,0.00017545,2]
[398420888,1765635043110,-166.34,0.00017579,2]
[398420889,1765635043121,-168.0,0.00017579,2]
[398420890,1765635043130,-1359.03,0.00017601,2]
[398420891,1765635043140,-1680.0,0.00017609,2]
[398420892,1765635043149,-489.9298867,0.0001762,2]
[398420893,1765635043159,-500.0,0.00017677,2]
[398420894,1765635043169,-840.0,0.00017677,2]
[398420895,1765635043178,-500.0,0.00017677,2]
[398420896,1765635043187,-500.0,0.00017677,2]
[398420897,1765635043196,-200.0,0.0001769,2]
[398420898,1765635043206,-9938.32945493,0.00017693,2]
[398420899,1765635043215,-7901.25999694,0.00017693,2]
[398420900,1765635043224,-168.0,0.00017698,2]
[398420901,1765635043234,-2375.0183292,0.00017704,2]
[398420902,1765635043244,-231.46245508,0.00017706,2]
[398420903,1765635043254,-168.0,0.00017746,2]
[398420904,1765635043263,-3077.5919,0.0001775,2]
[398420905,1765635043272,-168.0,0.00017751,2]
[398420906,1765635043282,-725.63,0.00017772,2]
[398420907,1765635043292,-500.0,0.00017807,2]
[398420908,1765635043301,-606.76,0.00017808,2]
[398420909,1765635043311,-151.0,0.00017808,2]
[398420910,1765635043321,-151.0,0.00017808,2]
[398420911,1765635043331,-151.0,0.00017808,2]
[398420912,1765635043340,-151.0,0.00017808,2]
[398420913,1765635043349,-152.52863,0.00017808,2]
[398420914,1765635043358,-151.96975,0.00017808,2]
[398420915,1765635043368,-151.0,0.00017808,2]
[398420916,1765635043377,-151.0,0.00017808,2]
[398420917,1765635043387,-151.0,0.00017808,2]
[398420918,1765635043397,-153.259659,0.00017808,2]
[398420919,1765635043406,-151.0,0.00017808,2]
[398420920,1765635043415,-151.0,0.00017808,2]
[398420921,1765635043426,-151.0,0.00017808,2]
[398420922,1765635043436,-151.0,0.00017808,2]
[398420923,1765635043446,-151.0,0.00017808,2]
[398420924,1765635043456,-151.0,0.00017808,2]
[398420925,1765635043466,-151.0,0.00017808,2]
[398420926,1765635043475,-152.163675,0.00017808,2]
[398420927,1765635043485,-151.0,0.00017808,2]
[398420928,1765635043496,-151.0,0.00017808,2]
[398420929,1765635043505,-151.0,0.00017808,2]
[398420930,1765635043515,-151.0,0.00017808,2]
[398420931,1765635043524,-151.0,0.00017808,2]
[398420932,1765635043533,-176.086367,0.00017808,2]
[398420933,1765635043542,-151.0,0.00017808,2]
[398420934,1765635043551,-151.0,0.00017808,2]
[398420935,1765635043560,-151.0,0.00017808,2]
[398420936,1765635043569,-151.0,0.00017808,2]
[398420938,1765635043579,-151.0,0.00017808,2]
[398420939,1765635043588,-151.0,0.00017808,2]
[398420940,1765635043597,-151.0,0.00017808,2]
[398420941,1765635043606,-151.0,0.00017808,2]
[398420942,1765635043615,-151.0,0.00017808,2]
[398420943,1765635043624,-151.0,0.00017808,2]
[398420944,1765635043634,-154.832108,0.00017808,2]
[398420945,1765635043643,-151.0,0.00017808,2]
[398420946,1765635043653,-151.0,0.00017808,2]
[398420947,1765635043662,-151.0,0.00017808,2]
[398420948,1765635043671,-151.0,0.00017808,2]
[398420949,1765635043681,-231.597379,0.00017808,2]
[398420951,1765635043690,-151.0,0.00017808,2]
[398420953,1765635043699,-165.272439,0.00017808,2]
[398420955,1765635043709,-151.0,0.00017808,2]
[398420956,1765635043718,-165.272439,0.00017808,2]
[398420957,1765635043727,-151.0,0.00017808,2]
[398420958,1765635043735,-165.272439,0.00017808,2]
[398420959,1765635043744,-165.272439,0.00017808,2]
[398420960,1765635043753,-155.202711,0.00017808,2]
[398420961,1765635043763,-151.0,0.00017808,2]
[398420962,1765635043772,-151.0,0.00017808,2]
[398420963,1765635043781,-151.0,0.00017808,2]
[398420964,1765635043790,-151.0,0.00017808,2]
[398420965,1765635043799,-151.0,0.00017808,2]
[398420966,1765635043809,-151.0,0.00017808,2]
[398420967,1765635043818,-151.0,0.00017808,2]
[398420968,1765635043826,-151.0,0.00017808,2]
[398420969,1765635043836,-151.0,0.00017808,2]
[398420970,1765635043858,-151.0,0.00017808,2]
[398420971,1765635043868,-151.0,0.00017808,2]
[398420972,1765635043878,-151.0,0.00017808,2]
[398420973,1765635043887,-151.0,0.00017808,2]
[398420974,1765635043897,-151.0,0.00017808,2]
[398420975,1765635043906,-151.0,0.00017808,2]
[398420976,1765635043916,-151.0,0.00017808,2]
[398420977,1765635043925,-151.0,0.00017808,2]
[398420978,1765635043935,-151.0,0.00017808,2]
[398420979,1765635043944,-151.0,0.00017808,2]
[398420980,1765635043953,-153.637331,0.00017808,2]
[398420981,1765635043962,-1241.839992,0.00017808,2]
[398420982,1765635043972,-151.0,0.00017808,2]
[398420983,1765635043982,-1241.839992,0.00017808,2]
[398420984,1765635043991,-437.806932,0.00017808,2]
[398420985,1765635044000,-151.0,0.00017808,2]
[398420986,1765635044009,-170.802512,0.00017808,2]
[398420987,1765635044019,-1241.839992,0.00017808,2]
[398420988,1765635044029,-437.806932,0.00017808,2]
[398420989,1765635044039,-1241.839992,0.00017808,2]
[398420990,1765635044048,-437.806932,0.00017808,2]
[398420991,1765635044058,-151.0,0.00017808,2]
[398420992,1765635044068,-437.806932,0.00017808,2]
[398420993,1765635044077,-151.0,0.00017808,2]
[398420994,1765635044087,-3805.043253,0.00017808,2]
[398420995,1765635044120,-183.650922,0.00017808,2]
[398420996,1765635044140,-151.423834,0.00017808,2]
[398420997,1765635044162,-166.24735,0.00017808,2]
[398420998,1765635044185,-151.0,0.00017808,2]
[398420999,1765635044201,-183.650922,0.00017808,2]
[398421000,1765635044220,-3805.043253,0.00017808,2]
[398421001,1765635044241,-288.284232,0.00017808,2]
[398421002,1765635044262,-166.24735,0.00017808,2]
[398421003,1765635044282,-279.856822,0.00017808,2]
[398421004,1765635044304,-183.650922,0.00017808,2]
[398421005,1765635044325,-151.0,0.00017808,2]
[398421006,1765635044341,-288.284232,0.00017808,2]
[398421007,1765635044359,-3805.043253,0.00017808,2]
[398421008,1765635044372,-183.650922,0.00017808,2]
[398421009,1765635044390,-279.856822,0.00017808,2]
[398421010,1765635044403,-166.24735,0.00017808,2]
[398421011,1765635044420,-288.284232,0.00017808,2]
[398421012,1765635044437,-166.24735,0.00017808,2]
[398421013,1765635044454,-3805.043253,0.00017808,2]
[398421014,1765635044471,-279.856822,0.00017808,2]
[398421015,1765635044489,-288.284232,0.00017808,2]
[398421016,1765635044506,-443.032683,0.00017808,2]
[398421017,1765635044532,-222.763778,0.00017808,2]
[398421018,1765635044548,-279.856822,0.00017808,2]
[398421019,1765635044563,-443.032683,0.00017808,2]
[398421020,1765635044578,-222.763778,0.00017808,2]
[398421021,1765635044595,-567.483536,0.00017808,2]
[398421022,1765635044610,-443.032683,0.00017808,2]
[398421023,1765635044625,-222.763778,0.00017808,2]
[398421024,1765635044641,-724.463939,0.00017808,2]
[398421025,1765635044656,-567.483536,0.00017808,2]
[398421026,1765635044672,-222.763778,0.00017808,2]
[398421027,1765635044690,-443.032683,0.00017808,2]